bitfinex-derivatives/quotes_SOLF0:USTF0_20250731
["timestamp","ask_amount","ask_price","bid_price","bid_amount"]
[1753985072169,6.53365248,176.96,176.88,3.13]
[1753985072170,5.6526,176.92,176.9,3.13]
[1753985072483,3.23,176.91,176.88,5.6536]
[1753985072682,3.23,176.91,176.9,3.13]
[1753985072869,3.23,176.91,176.88,5.6536]
[1753985072870,3.23,176.91,176.87,0.1]
[1753985073073,3.23,176.9,176.87,0.1]
[1753985073275,3.23,176.93,176.87,3.23]
[1753985073473,3.23,176.93,176.87,8.8839]
[1753985073773,6.53365248,176.94,176.88,3.13]
[1753985073980,3.23,176.92,176.87,0.1]
[1753985074178,8.8837,176.88,176.87,0.1]
[1753985074873,19.56975079,176.88,176.87,0.1]
[1753985075376,3.23,176.87,176.8,3.72015188]
[1753985075580,3.23,176.83,176.8,3.72015188]
[1753985075882,3.23,176.84,176.81,3.13]
[1753985076079,3.23,176.87,176.81,3.13]
[1753985076277,4.14690022,176.86,176.81,3.13]
[1753985076472,3.23,176.84,176.81,3.13]
[1753985076674,112.57365248,176.88,176.8,3.72015188]
[1753985076675,3.23,176.88,176.85,5.6544]
[1753985076978,8.8838,176.88,176.86,3.13]
[1753985077883,3.23,176.87,176.86,3.13]
[1753985078384,3.23,176.89,176.87,3.13]
[1753985078683,4.14431368,176.88,176.87,3.13]
[1753985078886,13.02801368,176.88,176.87,3.13]
[1753985079085,3.23,176.88,176.87,3.13]
[1753985079286,3.23,176.9,176.88,3.13]
[1753985079781,106.06,176.92,176.88,3.13]
[1753985079782,5.6528,176.91,176.88,3.13]
[1753985079980,3.23,176.89,176.88,3.13]
[1753985080180,106.06,176.92,176.87,3.13]
[1753985080379,106.06,176.92,176.89,3.13]
[1753985080779,106.06,176.92,176.91,3.13]
[1753985080975,109.29,176.92,176.91,3.13]
[1753985081480,3.23,176.9,176.87,3.13]
[1753985081680,109.29,176.92,176.87,3.13]
[1753985082181,3.23,176.91,176.87,5.6538]
[1753985082385,3.23,176.91,176.89,3.13]
[1753985082579,109.29,176.92,176.87,5.654]
[1753985082974,109.29,176.92,176.9,3.13]
[1753985083186,5.6527,176.91,176.9,3.13]
[1753985083391,3.23,176.91,176.88,3.13]
[1753985083681,3.23,176.91,176.89,3.13]
[1753985083887,109.29,176.92,176.81,3.13]
[1753985084087,109.29,176.92,176.8,3.72015188]
[1753985084088,109.29,176.92,176.85,3.13]
[1753985084386,5.6533,176.9,176.86,5.6541]
[1753985084586,3.23,176.91,176.89,3.13]
[1753985084885,3.23,176.89,176.81,3.13]
[1753985085089,3.23,176.87,176.81,3.13]
[1753985085590,3.23,176.88,176.81,3.13]
[1753985086688,5.6547,176.85,176.83,3.13]
[1753985086877,6.53365248,176.89,176.84,3.13]
[1753985087082,3.23,176.86,176.84,3.13]
[1753985087286,8.8845,176.86,176.84,3.13]
[1753985087488,5.6545,176.86,176.85,3.13]
[1753985087883,6.53365248,176.87,176.81,3.13]
[1753985088180,6.53365248,176.87,176.8,3.72015188]
[1753985088181,3.23,176.86,176.8,6.85015188]
[1753985088387,5.6557,176.82,176.81,3.13]
[1753985088591,6.53365248,176.85,176.8,3.72015188]
[1753985088783,3.23,176.82,176.8,3.72015188]
[1753985088990,8.8859,176.81,176.8,3.72015188]
[1753985090581,3.23,176.83,176.81,3.13]
[1753985090782,3.23,176.82,176.8,6.85015188]
[1753985090987,3.23,176.82,176.81,3.13]
[1753985091189,8.8858,176.82,176.81,3.13]
[1753985091492,6.53365248,176.82,176.8,3.72015188]
[1753985091691,3.23,176.81,176.8,3.72015188]
[1753985091887,8.8859,176.81,176.8,3.72015188]
[1753985093296,5.6557,176.82,176.8,6.85015188]
[1753985093594,3.23,176.82,176.8,6.85015188]
[1753985093998,5.6559,176.81,176.8,6.85015188]
[1753985094298,3.23,176.83,176.8,3.72015188]
[1753985094493,3.23,176.83,176.81,3.13]
[1753985094997,3.23,176.83,176.82,3.13]
[1753985095198,8.8853,176.83,176.82,3.13]
[1753985096297,8.8853,176.83,176.8,3.72015188]
[1753985096298,3.23,176.82,176.8,3.72015188]
[1753985096498,106.08,176.84,176.8,3.72015188]
[1753985096695,3.23,176.86,176.81,3.13]
[1753985096888,109.33,176.87,176.81,3.13]
[1753985097093,3.23,176.86,176.82,3.13]
[1753985097289,106.1,176.87,176.8,3.72015188]
[1753985097495,3.23,176.84,176.82,3.13]
[1753985098404,8.6952,176.83,176.82,3.13]
[1753985098702,3.04,176.85,176.8,6.75015188]
[1753985098894,5.6559,176.81,176.8,3.72015188]
[1753985099100,8.6959,176.81,176.8,6.75015188]
[1753985100298,8.6959,176.81,176.8,3.72015188]
[1753985100902,5.6554,176.83,176.81,3.03]
[1753985101210,3.04,176.89,176.83,3.03]
[1753985101398,5.6544,176.86,176.84,9.56365248]
[1753985101599,106.1,176.9,176.85,3.03]
[1753985101909,3.04,176.96,176.9,3.03]
[1753985102103,4.17988843,176.95,176.9,3.03]
[1753985102297,4.17988843,176.94,176.91,3.03]
[1753985102502,4.17988843,176.93,176.84,6.53365248]
[1753985102698,3.04,176.91,176.85,3.03]
[1753985103105,5.6546,176.85,176.84,3.03]
[1753985103505,3.04,176.88,176.84,3.03]
[1753985103810,3.04,176.88,176.82,3.03]
[1753985104207,3.04,176.87,176.82,3.03]
[1753985104406,6.53365248,176.89,176.8,3.72015188]
[1753985104605,6.53365248,176.87,176.8,3.72015188]
[1753985104807,7.21860032,176.86,176.81,3.03]
[1753985105009,3.04,176.85,176.8,3.72015188]
[1753985105219,5.6551,176.84,176.81,3.03]
[1753985106305,5.6553,176.83,176.81,3.03]
[1753985106706,3.04,176.87,176.81,3.03]
[1753985106902,4.17613778,176.86,176.8,10.25380436]
[1753985107106,112.65365248,176.89,176.8,3.72015188]
[1753985107300,9.57365248,176.87,176.8,3.72015188]
[1753985107504,8.6959,176.81,176.8,3.72015188]
[1753985108105,5.6559,176.81,176.8,6.75015188]
[1753985108914,5.6556,176.82,176.8,6.75015188]
[1753985109114,3.04,176.86,176.8,6.75015188]
[1753985109306,4.17533804,176.85,176.81,3.03]
[1753985109510,5.6541,176.87,176.84,6.53365248]
[1753985109702,106.16,176.92,176.87,3.03]
[1753985109908,5.6545,176.86,176.83,6.53365248]
[1753985110109,3.04,176.91,176.84,3.03]
[1753985110308,3.04,176.85,176.8,6.75015188]
[1753985110511,5.6558,176.82,176.8,3.72015188]
[1753985110708,5.6558,176.82,176.81,3.03]
[1753985112011,8.6959,176.81,176.8,3.72015188]
[1753985112214,5.6559,176.81,176.8,6.75015188]
[1753985112613,5.6557,176.82,176.8,6.75015188]
[1753985112808,5.6557,176.82,176.81,3.03]
[1753985113017,3.04,176.82,176.8,3.72015188]
[1753985113209,4.65739494,176.9,176.81,3.03]
[1753985113210,110.36,176.87,176.81,3.03]
[1753985113410,3.04,176.89,176.83,6.53365248]
[1753985113615,3.04,176.9,176.83,6.53365248]
[1753985113917,4.18155391,176.89,176.83,6.53365248]
[1753985114116,3.04,176.87,176.85,3.03]
[1753985114312,5.6543,176.86,176.85,3.03]
[1753985114517,3.04,176.86,176.83,6.53365248]
[1753985114718,3.04,176.85,176.83,3.03]
[1753985114914,8.6949,176.84,176.83,3.03]
[1753985115915,5.6549,176.84,176.83,3.03]
[1753985118219,5.6549,176.84,176.81,5.6558]
[1753985118425,5.6549,176.84,176.83,3.03]
[1753985120824,3.04,176.86,176.83,3.03]
[1753985121127,5.6547,176.85,176.84,3.03]
[1753985121323,3.04,176.84,176.82,3.03]
[1753985121627,3.04,176.84,176.81,5.6559]
[1753985121823,3.04,176.84,176.83,3.03]
[1753985122024,5.655,176.84,176.83,3.03]
[1753985122917,3.04,176.88,176.83,3.03]
[1753985123118,3.04,176.89,176.83,3.03]
[1753985123321,3.04,176.87,176.84,3.03]
[1753985123523,5.6549,176.85,176.84,3.03]
[1753985123729,8.6949,176.85,176.84,3.03]
[1753985124125,8.6949,176.85,176.81,5.6558]
[1753985124126,5.6553,176.83,176.82,3.03]
[1753985124925,5.655,176.84,176.8,10.25380436]
[1753985125125,5.655,176.84,176.81,3.03]
[1753985125530,5.6552,176.83,176.82,3.03]
[1753985125733,3.04,176.84,176.8,10.25380436]
[1753985126032,107.18,176.9,176.84,3.03]
[1753985126231,3.04,176.88,176.84,3.03]
[1753985126433,8.6946,176.85,176.84,3.03]
[1753985127131,5.6544,176.86,176.8,10.25380436]
[1753985127334,3.04,176.87,176.83,3.03]
[1753985127534,3.04,176.86,176.84,3.03]
[1753985127730,5.6547,176.85,176.84,3.03]
[1753985128238,5.6553,176.83,176.81,3.26]
[1753985128428,5.6553,176.83,176.82,3.26]
[1753985129134,3.18,176.82,176.8,6.98015188]
[1753985129325,3.18,176.81,176.8,6.98015188]
[1753985129935,5.6556,176.82,176.8,6.98015188]
[1753985130133,8.8356,176.82,176.81,3.26]
[1753985132431,8.8359,176.81,176.8,3.72015188]
[1753985132634,13.04400433,176.81,176.8,3.72015188]
[1753985133836,4.68486441,176.86,176.8,3.72015188]
[1753985134032,3.18,176.84,176.81,3.26]
[1753985134230,3.18,176.84,176.8,10.25380436]
[1753985134441,8.8349,176.84,176.83,3.26]
[1753985135331,3.18,176.82,176.8,3.72015188]
[1753985135538,3.18,176.83,176.8,3.72015188]
[1753985135929,8.8359,176.81,176.8,3.72015188]
[1753985136731,5.6559,176.81,176.8,6.98015188]
[1753985137334,8.8359,176.81,176.8,3.72015188]
[1753985137531,13.04592836,176.81,176.8,3.72015188]
[1753985141636,13.04592836,176.81,176.8,6.98015188]
[1753985141838,13.04592836,176.81,176.8,5.188e-05]
[1753985142741,17.08014019,176.81,176.8,5.188e-05]
[1753985143640,13.04592836,176.81,176.8,5.188e-05]
[1753985143941,3.18,176.85,176.8,3.26005188]
[1753985144145,4.20230968,176.84,176.8,3.26005188]
[1753985144442,5.6558,176.82,176.8,3.26005188]
[1753985144641,3.18,176.86,176.81,5.6557]
[1753985144841,4.20206971,176.85,176.8,5.188e-05]
[1753985145043,7.38206971,176.84,176.8,5.188e-05]
[1753985145239,3.18,176.84,176.8,5.188e-05]
[1753985145647,5.6559,176.81,176.8,5.188e-05]
[1753985147041,5.6557,176.82,176.8,5.188e-05]
[1753985147345,3.18,176.84,176.8,5.188e-05]
[1753985147547,5.6559,176.81,176.8,5.188e-05]
[1753985149449,107.34,176.84,176.8,5.188e-05]
[1753985149642,3.18,176.85,176.8,5.188e-05]
[1753985149643,3.18,176.89,176.83,6.56776694]
[1753985149951,7.38391377,176.88,176.83,6.56776694]
[1753985150244,3.18,176.86,176.83,6.56776694]
[1753985150450,3.18,176.85,176.84,3.26]
[1753985150647,5.6544,176.86,176.83,6.56776694]
[1753985150853,5.6544,176.86,176.85,3.26]
[1753985151145,5.6541,176.87,176.84,5.6549]
[1753985151348,3.18,176.88,176.86,3.26]
[1753985151743,5.654,176.87,176.86,3.26]
[1753985152352,5.6538,176.88,176.86,3.26]
[1753985152950,4.20293756,176.87,176.81,3.26]
[1753985153147,3.18,176.86,176.8,6.56781882]
[1753985153341,3.18,176.88,176.81,8.9158]
[1753985153545,5.6549,176.85,176.82,3.26]
[1753985153841,3.18,176.87,176.82,3.26]
[1753985154146,3.18,176.88,176.81,3.26]
[1753985154352,3.18,176.86,176.81,3.26]
[1753985154547,4.20215647,176.85,176.8,5.188e-05]
[1753985154852,3.18,176.82,176.8,5.188e-05]
[1753985155053,5.6559,176.81,176.8,5.188e-05]
[1753985155251,9.85780438,176.81,176.8,5.188e-05]
[1753985155552,5.6582,176.74,176.66,6.56776694]
[1753985155747,3.18,176.73,176.67,3.26]
[1753985156351,5.6587,176.73,176.7,3.26]
[1753985156949,3.18,176.75,176.7,3.26]
[1753985157645,107.26,176.78,176.69,3.26]
[1753985157954,3.18,176.77,176.69,3.26]
[1753985158158,3.02,176.73,176.7,3.32]
[1753985158347,3.02,176.72,176.7,3.32]
[1753985158754,8.6789,176.72,176.7,3.32]
[1753985158950,8.6789,176.72,176.69,3.32]
[1753985159348,3.02,176.76,176.69,5.6597]
[1753985159549,3.02,176.76,176.7,3.32]
[1753985160854,3.02,176.76,176.7,5.6594]
[1753985161053,3.02,176.76,176.68,3.32]
[1753985161346,3.02,176.75,176.67,5.6603]
[1753985161553,3.02,176.75,176.68,3.32]
[1753985161746,8.6779,176.75,176.69,6.56776694]
[1753985161952,3.02,176.77,176.7,3.32]
[1753985162455,8.6787,176.73,176.71,3.32]
[1753985162644,3.02,176.73,176.7,3.32]
[1753985162845,3.02,176.73,176.71,3.32]
[1753985163041,107.76,176.78,176.71,3.32]
[1753985163042,3.02,176.76,176.71,3.32]
[1753985163247,6.56776694,176.79,176.69,6.56776694]
[1753985163454,3.02,176.76,176.72,3.32]
[1753985164054,3.02,176.78,176.72,3.32]
[1753985164753,5.6583,176.74,176.72,3.32]
[1753985164954,8.6783,176.74,176.72,3.32]
[1753985165154,3.02,176.78,176.73,3.32]
[1753985165453,3.02,176.77,176.72,3.32]
[1753985166153,3.02,176.77,176.72,9.88776694]
[1753985166350,5.6577,176.76,176.73,5.6584]
[1753985166554,3.02,176.8,176.74,3.32]
[1753985166757,3.02,176.78,176.74,3.32]
[1753985167255,8.6778,176.75,176.74,3.32]
[1753985167456,3.02,176.75,176.74,3.32]
[1753985167651,3.02,176.8,176.74,3.32]
[1753985168056,5.6577,176.76,176.74,3.32]
[1753985168258,5.6577,176.76,176.73,3.32]
[1753985168757,5.6572,176.77,176.74,6.56776694]
[1753985168953,114.20776694,176.83,176.74,6.56776694]
[1753985169250,5.6585,176.73,176.71,3.32]
[1753985169452,8.6785,176.73,176.72,3.32]
[1753985169648,8.6785,176.73,176.7,6.56776694]
[1753985169649,5.6585,176.73,176.71,3.32]
[1753985170159,3.02,176.71,176.7,3.32]
[1753985170354,3.02,176.76,176.7,3.32]
[1753985170859,3.02,176.74,176.7,3.32]
[1753985171551,8.6791,176.71,176.7,3.32]
[1753985171756,3.02,176.76,176.7,3.32]
[1753985171953,5.659,176.72,176.71,3.32]
[1753985172257,8.679,176.72,176.71,3.32]
[1753985172454,6.56776694,176.77,176.68,3.32]
[1753985172661,3.02,176.76,176.68,3.32]
[1753985173560,3.02,176.76,176.68,6.56776694]
[1753985173757,3.02,176.76,176.7,6.56776694]
[1753985174062,3.02,176.75,176.71,3.32]
[1753985174362,3.02,176.75,176.73,3.32]
[1753985174548,3.02,176.76,176.74,3.32]
[1753985174753,4.68486441,176.82,176.74,3.32]
[1753985174754,112.18486441,176.82,176.74,3.32]
[1753985174950,6.56776694,176.83,176.75,3.32]
[1753985174951,3.02,176.79,176.75,3.32]
[1753985175152,3.02,176.81,176.77,3.32]
[1753985175659,5.6568,176.79,176.76,12.22516694]
[1753985175860,5.6568,176.79,176.78,3.32]
[1753985176859,4.68486441,176.85,176.79,3.32]
[1753985177159,3.02,176.86,176.83,3.32]
[1753985177361,3.02,176.84,176.83,3.32]
[1753985177556,8.6749,176.84,176.83,3.32]
[1753985177752,3.02,176.84,176.83,3.32]
[1753985178155,5.6554,176.83,176.81,6.56776694]
[1753985178367,8.6754,176.83,176.82,3.32]
[1753985178558,5.6561,176.81,176.78,8.9767]
[1753985178760,6.56776694,176.87,176.79,3.32]
[1753985178967,3.02,176.85,176.79,3.32]
[1753985179264,4.29455651,176.84,176.8,3.32]
[1753985179465,3.02,176.81,176.8,3.32]
[1753985179762,6.56776694,176.89,176.79,12.22416694]
[1753985180056,3.02,176.83,176.82,3.32]
[1753985180257,3.02,176.88,176.8,3.32]
[1753985180459,4.2945788,176.87,176.8,3.32]
[1753985180660,3.02,176.81,176.77,9.88776694]
[1753985180860,3.02,176.86,176.77,9.88776694]
[1753985181067,3.02,176.84,176.77,3.32]
[1753985181360,3.02,176.82,176.77,3.32]
[1753985181569,6.56776694,176.85,176.75,6.56776694]
[1753985181758,3.02,176.83,176.79,3.32]
[1753985182066,3.02,176.81,176.78,3.32]
[1753985182361,3.02,176.84,176.78,3.32]
[1753985182568,4.29719216,176.83,176.77,6.56776694]
[1753985182766,6.56776694,176.87,176.78,3.32]
[1753985182961,5.6562,176.8,176.78,3.32]
[1753985183369,3.02,176.84,176.78,3.32]
[1753985183565,5.6558,176.82,176.79,6.56776694]
[1753985183864,3.02,176.83,176.82,3.32]
[1753985184067,8.6755,176.83,176.82,3.32]
[1753985184264,3.02,176.83,176.79,6.56776694]
[1753985184462,3.02,176.82,176.81,3.32]
[1753985184768,8.6756,176.82,176.81,3.32]
[1753985186070,5.6556,176.82,176.81,3.32]
[1753985186870,8.6756,176.82,176.81,3.32]
[1753985187460,5.6554,176.83,176.8,3.32]
[1753985187666,3.02,176.88,176.82,3.32]
[1753985187866,3.02,176.85,176.81,6.56776694]
[1753985188170,3.02,176.84,176.83,3.25]
[1753985188362,3.02,176.84,176.8,3.25]
[1753985188567,3.14,176.81,176.8,3.25]
[1753985188765,3.14,176.88,176.8,3.25]
[1753985188966,11.25263135,176.89,176.8,3.25]
[1753985188967,5.6558,176.82,176.8,3.25]
[1753985189170,8.7958,176.82,176.81,3.25]
[1753985189470,4.29732528,176.82,176.78,3.25]
[1753985189667,6.56776694,176.85,176.78,3.25]
[1753985189668,3.14,176.79,176.78,3.25]
[1753985190061,3.14,176.83,176.76,3.25]
[1753985190365,3.14,176.81,176.73,3.25]
[1753985190571,5.6577,176.76,176.73,3.25]
[1753985191069,3.14,176.77,176.74,3.25]
[1753985191270,3.14,176.81,176.74,3.25]
[1753985191473,3.14,176.79,176.74,3.25]
[1753985191670,5.6578,176.75,176.74,3.25]
[1753985191875,8.7978,176.75,176.74,3.25]
[1753985192466,3.14,176.75,176.7,133.50404081]
[1753985192668,3.14,176.74,176.72,3.25]
[1753985192873,6.56776694,176.79,176.7,3.25]
[1753985193073,5.659,176.72,176.7,3.25]
[1753985193376,3.14,176.72,176.71,3.25]
[1753985193874,8.7988,176.72,176.71,3.25]
[1753985194178,5.6597,176.69,176.68,3.25]
[1753985194581,8.7997,176.69,176.68,3.25]
[1753985195381,5.6597,176.69,176.68,3.25]
[1753985195579,8.7997,176.69,176.65,6.56776694]
[1753985195772,6.56776694,176.69,176.58,9.81776694]
[1753985195976,3.14,176.68,176.61,5.6621]
[1753985196181,3.14,176.68,176.62,3.25]
[1753985196873,3.14,176.68,176.62,9.81776694]
[1753985197075,3.14,176.68,176.64,5.6611]
[1753985197381,8.8004,176.68,176.65,3.25]
[1753985197578,3.14,176.67,176.62,6.56776694]
[1753985197781,3.14,176.69,176.63,3.25]
[1753985197982,3.14,176.72,176.65,3.25]
[1753985198177,15.99966441,176.77,176.65,3.25]
[1753985198178,3.14,176.7,176.65,3.25]
[1753985198384,3.14,176.66,176.63,3.25]
[1753985198585,3.14,176.66,176.65,3.25]
[1753985198784,5.6606,176.67,176.63,6.56776694]
[1753985198980,5.6606,176.67,176.64,3.25]
[1753985199182,5.6606,176.67,176.65,3.25]
[1753985199382,5.6607,176.66,176.65,3.25]
[1753985200086,3.14,176.66,176.65,3.25]
[1753985200388,3.14,176.65,176.63,3.25]
[1753985200689,8.8013,176.64,176.61,15.47986694]
[1753985200880,6.56776694,176.71,176.62,3.25]
[1753985201078,6.56776694,176.71,176.61,6.56776694]
[1753985201079,3.14,176.64,176.61,6.56776694]
[1753985201390,3.14,176.64,176.63,3.25]
[1753985201786,3.14,176.64,176.62,5.6618]
[1753985201987,5.6608,176.66,176.61,6.56776694]
[1753985202289,6.56776694,176.71,176.65,3.25]
[1753985202486,5.6605,176.67,176.66,3.25]
[1753985202684,3.14,176.69,176.65,6.56776694]
[1753985202886,3.14,176.74,176.66,3.25]
[1753985203091,3.14,176.72,176.66,3.25]
[1753985203287,3.14,176.7,176.66,3.25]
[1753985203495,3.14,176.69,176.67,3.25]
[1753985203688,3.14,176.69,176.68,3.25]
[1753985204287,3.14,176.69,176.64,6.56776694]
[1753985204493,3.14,176.74,176.66,3.25]
[1753985204699,5.6609,176.66,176.62,12.22966694]
[1753985204990,3.14,176.64,176.63,3.25]
[1753985206489,8.8013,176.64,176.63,3.25]
[1753985206992,3.14,176.64,176.63,3.25]
[1753985207787,3.14,176.72,176.63,3.25]
[1753985208098,4.3185669,176.71,176.64,6.56776694]
[1753985208291,5.6606,176.67,176.65,3.25]
[1753985208492,3.14,176.67,176.65,3.25]
[1753985208998,3.14,176.67,176.64,6.56776694]
[1753985209198,3.14,176.67,176.66,3.25]
[1753985209700,3.14,176.72,176.66,3.25]
[1753985210001,3.14,176.7,176.64,6.56776694]
[1753985210204,3.14,176.7,176.68,3.25]
[1753985210500,3.14,176.75,176.67,3.25]
[1753985210697,7.45659807,176.74,176.7,6.56776694]
[1753985210896,3.14,176.73,176.71,3.25]
[1753985211106,5.6588,176.72,176.71,3.25]
[1753985211399,8.7988,176.72,176.71,3.25]
[1753985213901,8.7988,176.72,176.7,3.25]
[1753985214100,8.7988,176.72,176.69,12.22746694]
[1753985214101,8.7988,176.72,176.71,3.25]
[1753985215609,5.6592,176.71,176.69,9.81776694]
[1753985215804,8.7992,176.71,176.7,3.25]
[1753985217205,5.6594,176.7,176.67,15.47806694]
[1753985217400,8.7994,176.7,176.69,3.25]
[1753985217598,3.14,176.7,176.69,3.25]
[1753985217797,5.6593,176.71,176.69,3.25]
[1753985217999,3.14,176.71,176.67,6.56776694]
[1753985218207,3.19,176.75,176.67,3.06]
[1753985218405,3.19,176.73,176.65,6.56776694]
[1753985218606,6.56776694,176.72,176.64,3.06]
[1753985218815,3.19,176.71,176.64,3.06]
[1753985220000,8.8508,176.66,176.65,3.06]
[1753985220202,6.56776694,176.7,176.62,3.06]
[1753985220409,5.6607,176.66,176.63,5.6614]
[1753985220712,5.6607,176.66,176.65,3.06]
[1753985221400,8.8507,176.66,176.65,3.06]
[1753985221610,3.19,176.71,176.63,3.06]
[1753985221908,4.33643605,176.7,176.63,3.06]
[1753985222106,5.6613,176.64,176.63,3.06]
[1753985222908,3.19,176.66,176.55,50.56776694]
[1753985222909,3.19,176.62,176.61,3.06]
[1753985223614,3.19,176.64,176.6,4.04075788]
[1753985223806,3.19,176.64,176.63,3.06]
[1753985224006,3.19,176.64,176.61,3.06]
[1753985224210,3.19,176.64,176.62,3.06]
[1753985224410,3.19,176.67,176.63,3.06]
[1753985224609,5.6608,176.66,176.63,3.06]
[1753985224811,3.19,176.67,176.63,3.06]
[1753985225010,5.6604,176.68,176.65,5.6608]
[1753985225213,3.19,176.7,176.66,3.06]
[1753985225516,3.19,176.73,176.65,3.06]
[1753985225710,3.19,176.71,176.65,3.06]
[1753985226209,4.33964936,176.7,176.62,6.58193015]
[1753985226409,3.19,176.67,176.6,3.06]
[1753985226615,5.6619,176.63,176.6,8.7225]
[1753985226811,3.19,176.67,176.62,3.06]
[1753985227018,3.19,176.67,176.63,3.06]
[1753985227215,5.661,176.65,176.64,3.06]
[1753985227719,8.851,176.65,176.64,3.06]
[1753985228114,3.19,176.65,176.64,3.06]
[1753985228310,3.19,176.71,176.65,3.06]
[1753985228517,3.19,176.69,176.63,3.06]
[1753985228718,4.34283152,176.7,176.63,3.06]
[1753985228719,3.19,176.71,176.63,3.06]
[1753985228919,3.19,176.69,176.63,3.06]
[1753985229120,3.19,176.69,176.65,3.06]
[1753985229322,3.19,176.73,176.66,3.06]
[1753985229522,3.19,176.71,176.66,3.06]
[1753985229718,3.19,176.67,176.62,6.58193015]
[1753985229923,3.19,176.69,176.61,3.06]
[1753985230118,3.19,176.67,176.61,3.06]
[1753985230319,3.19,176.64,176.61,3.06]
[1753985230620,3.19,176.63,176.62,3.06]
[1753985231026,8.8518,176.63,176.62,3.06]
[1753985231228,3.19,176.67,176.59,3.06]
[1753985231426,3.19,176.65,176.58,3.06]
[1753985231820,3.19,176.64,176.58,3.06]
[1753985232124,8.8525,176.61,176.6,3.06]
[1753985232715,5.6625,176.61,176.6,3.06]
[1753985233026,3.19,176.63,176.61,3.06]
[1753985233334,3.19,176.63,176.62,3.06]
[1753985233521,3.19,176.65,176.62,3.06]
[1753985233820,4.35841956,176.64,176.62,3.06]
[1753985234024,11.25753044,176.69,176.58,6.58193015]
[1753985234025,5.6621,176.62,176.59,3.06]
[1753985234217,3.19,176.66,176.59,3.06]
[1753985234421,3.19,176.64,176.59,3.06]
[1753985234624,4.36217985,176.63,176.59,3.06]
[1753985234826,4.36217985,176.63,176.53,44.0]
[1753985234827,3.19,176.64,176.53,44.0]
[1753985235028,8.8524,176.61,176.54,3.06]
[1753985235328,3.19,176.63,176.56,3.06]
[1753985235526,10.02126996,176.62,176.56,9.64193015]
[1753985235727,3.19,176.65,176.57,3.06]
[1753985235924,3.19,176.63,176.57,3.06]
[1753985236227,3.19,176.61,176.57,3.06]
[1753985236425,3.19,176.63,176.55,3.06]
[1753985236634,4.35690935,176.62,176.61,3.06]
[1753985236826,4.67560029,176.68,176.61,3.06]
[1753985237124,3.19,176.71,176.66,12.24243015]
[1753985237325,7.55209488,176.7,176.68,6.58193015]
[1753985237527,4.36209488,176.69,176.68,9.64193015]
[1753985237728,13.21179488,176.69,176.68,3.06]
[1753985237928,13.21180861,176.69,176.68,3.06]
[1753985238628,5.6604,176.67,176.66,9.64193015]
[1753985238835,10.02281796,176.67,176.66,9.64193015]